fUSD/lending_fUSD_20260109
["ID","MTS","AMOUNT","RATE_DAILY","PERIOD"]
[401162607,1768000245318,-500.0,0.00017973,2]
[401162608,1768000245328,-500.0,0.00017973,2]
[401162609,1768000245338,-500.0,0.00017973,2]
[401162610,1768000245348,-500.0,0.00017973,2]
[401162611,1768000245358,-500.0,0.00017973,2]
[401162612,1768000245367,-500.0,0.00017973,2]
[401162613,1768000245377,-500.0,0.00017973,2]
[401162614,1768000245387,-500.0,0.00017973,2]
[401162615,1768000245397,-500.0,0.00017973,2]
[401162616,1768000245407,-500.0,0.00017973,2]
[401162617,1768000245417,-500.0,0.00017973,2]
[401162618,1768000245427,-500.0,0.00017973,2]
[401162619,1768000245436,-500.0,0.00017973,2]
[401162620,1768000245447,-501.05787152,0.00017973,2]
[401162621,1768000245456,-500.0,0.00017973,2]
[401162622,1768000245466,-500.0,0.00017973,2]
[401162623,1768000245476,-578.02071049,0.00017973,2]
[401162624,1768000245486,-429.09119552,0.00017973,2]
[401162625,1768000245496,-500.0,0.00017973,2]
[401162626,1768000245506,-279.31517583,0.00017973,2]
[401162627,1768000245516,-500.0,0.00017973,2]
[401162628,1768000245525,-500.0,0.00017973,2]
[401162629,1768000245535,-182.86859792,0.00017973,2]
[401162630,1768000245545,-500.0,0.00017973,2]
[401162631,1768000245556,-500.0,0.00017973,2]
[401162632,1768000245565,-500.0,0.00017973,2]
[401162633,1768000245576,-554.86072459,0.00017973,2]
[401162634,1768000245586,-500.0,0.00017973,2]
[401162635,1768000245604,-500.0,0.00017973,2]
[401162636,1768000245614,-546.15438132,0.00017973,2]
[401162637,1768000245623,-500.0,0.00017973,2]
[401162638,1768000245633,-500.0,0.00017973,2]
[401162639,1768000245643,-500.0,0.00017973,2]
[401162640,1768000245652,-150.0,0.00017973,2]
[401162641,1768000245661,-500.0,0.00017973,2]
[401162642,1768000245671,-500.0,0.00017973,2]
[401162643,1768000245680,-500.0,0.00017973,2]
[401162644,1768000245690,-500.0,0.00017973,2]
[401162645,1768000245700,-168.53464326,0.00017973,2]
[401162646,1768000245709,-515.27642925,0.00017973,2]
[401162647,1768000245719,-195.06667749,0.00017973,2]
[401162648,1768000245729,-500.0,0.00017973,2]
[401162649,1768000245739,-500.0,0.00017973,2]
[401162650,1768000245749,-398.03125352,0.00017973,2]
[401162651,1768000245760,-500.0,0.00017973,2]
[401162652,1768000245770,-500.0,0.00017973,2]
[401162653,1768000245780,-208.06887662,0.00017973,2]
[401162654,1768000245790,-500.0,0.00017973,2]
[401162655,1768000245800,-500.0,0.00017973,2]
[401162656,1768000245810,-165.3256661,0.00017973,2]
[401162657,1768000245821,-500.0,0.00017973,2]
[401162658,1768000245830,-500.0,0.00017973,2]
[401162659,1768000245844,-1000.0,0.00017974,2]
[401162660,1768000245864,-500.0,0.00017982,2]
[401162661,1768000245875,-152.75103688,0.00017982,2]
[401162662,1768000245885,-219.90917491,0.0001799,2]
[401162663,1768000245895,-219.90917491,0.0001799,2]
[401162664,1768000245905,-261.78722899,0.00017999,2]
[401162665,1768000245915,-7824.46415532,0.00017999,2]
[401162667,1768000246203,-300.0,0.00017999,2]
[401162668,1768000246213,-359.08313245,0.00017999,2]
[401162669,1768000246223,-300.0,0.00017999,2]
[401162670,1768000246232,-666.0,0.00017999,2]
[401162671,1768000246242,-300.0,0.00017999,2]
[401162672,1768000246251,-300.0,0.00017999,2]
[401162673,1768000246260,-666.0,0.00017999,2]
[401162674,1768000246271,-666.0,0.00017999,2]
[401162675,1768000246281,-300.0,0.00017999,2]
[401162676,1768000246290,-666.0,0.00017999,2]
[401162677,1768000246300,-300.0,0.00017999,2]
[401162678,1768000246310,-534741.30938822,0.00018,2]
[401162681,1768000246588,-1384.00984328,0.00018,2]
[401162682,1768000246627,-7293.29476398,0.00018,2]
[401162683,1768000246639,-4280.1121205,0.00018,2]
[401162684,1768000246650,-475.3447729,0.00018,2]
[401162685,1768000246662,-3817.54959322,0.00018,2]
[401162686,1768000246673,-2165.5560001,0.00018,2]
[401162687,1768000246728,-975.43176676,0.00018,2]
[401162688,1768000246780,-639.81943298,0.00018,2]
[401162689,1768000246795,-569.93088227,0.00018,2]
[401162690,1768000344726,504.56403367,0.000176,30]
[401162691,1768000350680,999.3,0.0002,30]
[401162692,1768001162559,-385.99815781,0.0001055,2]
[401162712,1768001431587,-113.15866428,0.0001055,2]
[401162714,1768001431596,-160.32433572,0.00011605,2]
[401162715,1768001431608,-34.67566428,0.00011605,2]
[401162718,1768001431619,-426.49795174,0.00013956,2]
[401162720,1768001431630,-173.50204826,0.00013956,2]
[401162721,1768001431641,-218.4273318,0.00015472,2]
[401162724,1768001431839,-98.6856682,0.00015472,2]
[401162725,1768001431849,-166.66,0.00015572,2]
[401162726,1768001431859,-142.40417879,0.00015625,2]
[401162727,1768001431871,-2430.08348929,0.00015625,2]
[401162728,1768001431883,-667.51233192,0.00015625,2]
[401162729,1768001431894,-169.04,0.00015748,2]
[401162730,1768001431904,-95.33766808,0.00015784,2]
[401162731,1768001431964,-333.62493111,0.00015784,2]
[401162732,1768001431976,-571.03740081,0.00015784,2]
[401162733,1768001431986,-166.66,0.000159,2]
[401162734,1768001431996,-166.66,0.00015952,2]
[401162735,1768001432006,-1200.0,0.00015999,2]
[401162736,1768001432016,-8870.91585168,0.00016,4]
[401162737,1768001432174,-2075.77743633,0.00016,4]
[401162738,1768001432193,-1432.49858027,0.00016,4]
[401162739,1768001437377,-500.0,0.00015999,2]
[401162740,1768001437388,-500.0,0.00015999,2]
[401162741,1768001437398,-364.22985899,0.00015999,2]
[401162742,1768001437409,-23542.62180246,0.00016,4]
[401162743,1768001437421,-661.76993656,0.00016,4]
[401162744,1768001437434,-302.0,0.00016,4]
[401162745,1768001437446,-1077.24144108,0.00016,4]
[401162746,1768001437458,-2635.99755214,0.00016,4]
[401162747,1768001437540,-269.34829773,0.00016,4]
[401162748,1768001437553,-2783.29144898,0.00016,4]
[401162749,1768001437565,-19365.06113403,0.00016,4]
[401162750,1768001437577,-16708.69439781,0.00016,4]
[401162751,1768001437589,-6484.5147958,0.00016,4]
[401162752,1768001437598,-150.0,0.000162,2]
[401162753,1768001437608,-4813.21718202,0.000162,5]
[401162771,1768001439919,-186.78561239,0.000162,5]
[401162772,1768001439928,-175.34750164,0.00016208,2]
[401162773,1768001439938,-176.74504367,0.00016208,2]
[401162775,1768001439949,-166.66,0.00016228,2]
[401162777,1768001439958,-6316.14373119,0.00016238,2]
[401162779,1768001439970,-681.23665659,0.00016238,2]
[401162780,1768001439982,-2093.9785881,0.00016238,2]
[401162781,1768001439993,-453.54656056,0.00016238,2]
[401162782,1768001440071,-990455.09446356,0.00016238,2]
[401162783,1768001440081,-1000.0,0.00016308,2]
[401162784,1768001440091,-455.32396504,0.00016337,2]
[401162785,1768001440101,-1647.215,0.00016338,2]
[401162786,1768001440110,-180.8080678,0.00016338,2]
[401162787,1768001440120,-5531.48355149,0.00016338,2]
[401162788,1768001440131,-5639.38159429,0.00016338,2]
[401162789,1768001440140,-427.62,0.00016438,2]
[401162790,1768001440150,-500.0,0.00016438,2]
[401162791,1768001440159,-500.0,0.00016438,2]
[401162792,1768001440169,-500.0,0.00016438,2]
[401162793,1768001440179,-500.0,0.00016438,2]
[401162794,1768001440193,-500.0,0.00016438,2]
[401162795,1768001440202,-500.0,0.00016438,2]
[401162796,1768001440212,-188.48064349,0.00016438,2]
[401162797,1768001440222,-500.0,0.00016438,2]
[401162798,1768001440231,-500.0,0.00016438,2]
[401162799,1768001440240,-600.0,0.00016438,2]
[401162800,1768001440250,-176.74504362,0.0001645,2]
[401162801,1768001440260,-166.66,0.00016479,2]
[401162802,1768001440270,-582.66868607,0.00016505,2]
[401162803,1768001440279,-5531.48355141,0.00016512,2]
[401162804,1768001440289,-5639.38159422,0.00016512,2]
[401162805,1768001440298,-166.66,0.00016556,2]
[401162806,1768001440307,-169.04,0.00016623,2]
[401162807,1768001440317,-175.34750162,0.00016631,2]
[401162808,1768001440326,-241.76,0.0001664,2]
[401162809,1768001440335,-5531.48355141,0.00016685,2]
[401162810,1768001440344,-5639.38159422,0.00016685,2]
[401162811,1768001440354,-176.74504362,0.00016691,2]
[401162812,1768001440364,-427.62,0.00016712,2]
[401162813,1768001440374,-151.10085397,0.00016758,2]
[401162814,1768001440384,-500.0,0.00016758,2]
[401162815,1768001440393,-500.0,0.00016758,2]
[401162816,1768001440404,-1000.0,0.00016786,2]
[401162817,1768001440414,-1738.1903,0.00016786,2]
[401162818,1768001440423,-500.0,0.00016813,2]
[401162819,1768001440433,-500.0,0.00016813,2]
[401162820,1768001440442,-500.0,0.00016833,2]
[401162821,1768001440452,-150.0,0.00016856,2]
[401162822,1768001440461,-150.0,0.00016856,2]
[401162823,1768001440470,-5531.48355141,0.00016859,2]
[401162824,1768001440480,-5639.38159422,0.00016859,2]
[401162825,1768001440490,-500.0,0.00016868,2]
[401162826,1768001440499,-500.0,0.00016868,2]
[401162827,1768001440509,-166.66,0.00016884,2]
[401162828,1768001440518,-150.0,0.00016911,2]
[401162829,1768001440527,-1000.0,0.00016919,2]
[401162830,1768001440537,-364.92481471,0.00016922,2]
[401162831,1768001440546,-500.0,0.00016922,2]
[401162832,1768001440556,-176.74504362,0.00016933,2]
[401162833,1768001440566,-1000.0,0.00016944,2]
[401162834,1768001440575,-150.0,0.00016966,2]
[401162835,1768001440585,-500.0,0.00016977,2]
[401162836,1768001440595,-427.62,0.00016986,2]
[401162837,1768001440605,-600.0,0.00016986,2]
[401162838,1768001440614,-5000.0,0.00016997,2]
[401162839,1768001440624,-679.02103293,0.00017004,2]
[401162840,1768001440634,-166.66,0.00017005,2]
[401162841,1768001440644,-150.0,0.0001702,2]
[401162842,1768001440653,-500.0,0.00017032,2]
[401162843,1768001440663,-5531.48355141,0.00017032,2]
[401162844,1768001440672,-5639.38159422,0.00017032,2]
[401162845,1768001440682,-964.69,0.00017041,2]
[401162846,1768001440691,-661.58,0.00017041,2]
[401162847,1768001440701,-965.45,0.00017041,2]
[401162848,1768001440710,-1323.16,0.00017041,2]
[401162849,1768001440720,-175.34750162,0.00017054,2]
[401162850,1768001440730,-150.0,0.00017075,2]
[401162851,1768001440740,-500.0,0.00017087,2]
[401162852,1768001440750,-219.90917492,0.00017089,2]
[401162853,1768001440759,-620.0,0.00017099,2]
[401162854,1768001440769,-322.6107,0.00017099,2]
[401162855,1768001440779,-500.0,0.00017099,2]
[401162856,1768001440788,-500.0,0.00017099,2]
[401162857,1768001440797,-500.0,0.00017099,2]
[401162858,1768001441142,-500.0,0.00017099,2]
[401162859,1768001441153,-500.0,0.00017099,2]
[401162860,1768001441162,-500.0,0.00017099,2]
[401162861,1768001441172,-500.0,0.00017099,2]
[401162862,1768001441182,-250.0,0.00017099,2]
[401162863,1768001441195,-553.64373807,0.00017099,2]
[401162864,1768001441205,-500.0,0.00017099,2]
[401162865,1768001441215,-250.0,0.00017099,2]
[401162866,1768001441224,-500.0,0.00017099,2]
[401162867,1768001441234,-250.0,0.00017099,2]
[401162868,1768001441244,-500.0,0.00017099,2]
[401162869,1768001441253,-250.0,0.00017099,2]
[401162870,1768001441263,-571.49862836,0.00017099,2]
[401162871,1768001441273,-250.0,0.00017099,2]
[401162872,1768001441283,-250.0,0.00017099,2]
[401162873,1768001441292,-500.0,0.00017099,2]
[401162874,1768001441302,-250.0,0.00017099,2]
[401162875,1768001441312,-500.0,0.00017099,2]
[401162876,1768001441322,-250.0,0.00017099,2]
[401162877,1768001441331,-500.0,0.00017099,2]
[401162878,1768001441341,-250.0,0.00017099,2]
[401162879,1768001441350,-500.0,0.00017099,2]
[401162880,1768001441360,-250.0,0.00017099,2]
[401162881,1768001441369,-500.0,0.00017099,2]
[401162882,1768001441378,-250.0,0.00017099,2]
[401162883,1768001441387,-500.0,0.00017099,2]
[401162884,1768001441397,-250.0,0.00017099,2]
[401162885,1768001441406,-500.0,0.00017099,2]
[401162886,1768001441416,-500.0,0.00017099,2]
[401162887,1768001441425,-500.0,0.00017099,2]
[401162888,1768001441434,-500.0,0.00017099,2]
[401162889,1768001441443,-500.0,0.00017099,2]
[401162890,1768001441452,-2000.0,0.00017099,2]
[401162891,1768001441462,-2000.0,0.00017099,2]
[401162892,1768001441471,-2000.0,0.00017099,2]
[401162893,1768001441480,-2000.0,0.00017099,2]
[401162894,1768001441490,-2000.0,0.00017099,2]
[401162895,1768001441499,-2000.0,0.00017099,2]
[401162896,1768001441508,-2000.0,0.00017099,2]
[401162897,1768001441518,-2000.0,0.00017099,2]
[401162898,1768001441528,-407.91279506,0.00017099,2]
[401162899,1768001441537,-30000.0,0.000171,2]
[401162900,1768001441546,-1000.0,0.00017122,2]
[401162901,1768001441556,-193.0,0.00017129,2]
[401162902,1768001441566,-250.0,0.0001713,2]
[401162903,1768001441575,-500.0,0.00017142,2]
[401162904,1768001441584,-159.10718444,0.00017145,2]
[401162905,1768001441594,-176.74504362,0.00017175,2]
[401162906,1768001441603,-1000.0,0.00017176,2]
[401162907,1768001441612,-556.4,0.00017178,2]
[401162908,1768001441622,-1225.2,0.00017178,2]
[401162909,1768001441632,-500.0,0.00017196,2]
[401162910,1768001441641,-5531.48355141,0.00017206,2]
[401162911,1768001441651,-5639.38159422,0.00017206,2]
[401162912,1768001441660,-166.66,0.00017212,2]
[401162913,1768001441669,-500.0,0.00017251,2]
[401162914,1768001441678,-427.62,0.0001726,2]
[401162915,1768001441688,-1000.0,0.00017294,2]
[401162916,1768001441697,-1000.0,0.00017303,2]
[401162917,1768001441707,-500.0,0.00017306,2]
[401162918,1768001441716,-500.0,0.00017361,2]
[401162919,1768001441725,-5531.48355141,0.00017379,2]
[401162920,1768001441735,-5639.38159422,0.00017379,2]
[401162921,1768001441744,-1000.0,0.00017383,2]
[401162922,1768001441753,-500.0,0.00017416,2]
[401162923,1768001441762,-518.0,0.0001747,2]
[401162924,1768001441771,-241.76,0.00017472,2]
[401162925,1768001441780,-175.34750162,0.00017477,2]
[401162926,1768001441789,-500.0,0.00017479,2]
[401162927,1768001441799,-169.04,0.00017497,2]
[401162928,1768001441808,-2000.0,0.000175,2]
[401162929,1768001441818,-1559.98068708,0.00017502,2]
[401162930,1768001441827,-2537.63252813,0.00017502,2]
[401162931,1768001441837,-3583.89449815,0.00017502,2]
[401162932,1768001441846,-4637.4768,0.00017502,2]
[401162933,1768001441856,-1000.0,0.00017531,2]
[401162934,1768001441865,-1000.0,0.00017531,2]
[401162935,1768001441874,-166.66,0.00017532,2]
[401162936,1768001441884,-427.63,0.00017534,2]
[401162937,1768001441894,-633.17,0.00017534,2]
[401162938,1768001441904,-5531.48355141,0.00017553,2]
[401162939,1768001441913,-5639.38159422,0.00017553,2]
[401162940,1768001441923,-1680.0,0.0001758,2]
[401162941,1768001441932,-168.0,0.00017604,2]
[401162942,1768001441941,-7656.97122123,0.0001764,2]
[401162943,1768001441950,-574.12855637,0.00017647,2]
[401162944,1768001441960,-1000.0,0.00017658,2]
[401162945,1768001441969,-214.0,0.00017668,2]
[401162946,1768001441978,-1000.0,0.00017679,2]
[401162947,1768001441988,-1112.33,0.00017686,2]
[401162948,1768001441998,-180.45,0.00017686,2]
[401162949,1768001442007,-1000.0,0.0001769,2]
[401162950,1768001442016,-168.0,0.00017694,2]
[401162951,1768001442025,-1000.0,0.000177,2]
[401162952,1768001442035,-152.0,0.00017708,3]
[401162953,1768001442044,-5531.48355141,0.00017726,2]
[401162954,1768001442054,-5639.38159422,0.00017726,2]
[401162955,1768001442064,-6709.59935273,0.0001773,2]
[401162956,1768001442074,-1000.0,0.00017742,2]
[401162957,1768001442083,-1000.0,0.00017757,2]
[401162958,1768001442094,-3268.0,0.00017771,2]
[401162959,1768001442103,-1000.0,0.00017772,2]
[401162960,1768001442112,-12099.97294963,0.000178,2]
[401162961,1768001442122,-1000.0,0.000178,2]
[401162962,1768001442131,-214.0,0.00017802,2]
[401162963,1768001442141,-151.0,0.00017807,2]
[401162964,1768001442150,-200.35779431,0.00017808,2]
[401162965,1768001442160,-161.78,0.00017808,2]
[401162966,1768001442170,-1000.0,0.00017811,2]
[401162968,1768001442180,-165.35,0.00017815,2]
[401162970,1768001442192,-10000.0,0.0001782,2]
[401162971,1768001442202,-10000.0,0.0001782,2]
[401162972,1768001442211,-10000.0,0.0001782,2]
[401162973,1768001442221,-10000.0,0.0001782,2]
[401162975,1768001442231,-200.0,0.00017855,2]
[401162976,1768001442241,-2000.0,0.00017856,2]
[401162977,1768001442250,-200.0,0.00017856,2]
[401162978,1768001442260,-200.0,0.00017856,2]
[401162979,1768001442271,-25000.0,0.00017891,3]
[401162980,1768001442280,-565.17771938,0.000179,2]
[401162981,1768001442289,-6536.36614774,0.000179,3]
[401162982,1768001444398,-151.0,0.00016042,2]
[401162983,1768001444408,-151.0,0.00016042,2]
[401162984,1768001444417,-6.73,0.00016208,2]
[401162985,1768001444429,-170.01504362,0.00016208,2]
[401162986,1768001444440,-102.88926666,0.00016438,2]
[401162988,1768001445508,-397.11073334,0.00016438,2]
[401162989,1768001445518,-176.74504362,0.00017417,2]
[401162990,1768001445528,-176.74504362,0.00017658,2]
[401162991,1768001445538,-1719.32187437,0.000179,3]
[401162992,1768001445628,-2387.85001,0.000179,3]
[401163015,1768002631581,-278.0,0.00015335,2]
[401163016,1768002631591,-200.0,0.00015418,2]
[401163017,1768002631601,-150.0,0.00015455,2]
[401163018,1768002631611,-679.02103293,0.00015594,2]
[401163019,1768002631620,-902.53,0.00015658,2]
[401163020,1768002631630,-1200.0,0.00015693,2]
[401163021,1768002631639,-5051.57387659,0.00015694,2]
[401163022,1768002631651,-13642.05094331,0.00015694,2]
[401163035,1768002631968,-981306.3751801,0.00015694,2]
[401163036,1768002631977,-423.13964519,0.00015784,2]
[401163037,1768002631986,-207.47357897,0.00015793,2]
[401163038,1768002631995,-254.91962652,0.00015793,2]
[401163039,1768002632005,-186.78385397,0.00015793,2]
[401163040,1768002632014,-201.20750503,0.00015793,2]
[401163041,1768002632024,-85925.86670675,0.00015794,2]
[401163042,1768002632035,-661.37350231,0.00015794,2]
[401163043,1768002632120,-6379.73160868,0.00015794,2]
[401163044,1768002637605,-178.44373857,0.00015693,2]
[401163045,1768002637615,-920.55626143,0.00015794,2]
[401163046,1768002637655,-2754.74062376,0.00015794,2]
[401163047,1768002637666,-34156.12889018,0.00015794,2]
[401163048,1768002637677,-40338.20066495,0.00015794,2]
[401163049,1768002637689,-2416.06200004,0.00015794,2]
[401163050,1768002637749,-2095.02050767,0.00015794,2]
[401163051,1768002639756,-410.07154183,0.00015794,2]
[401163052,1768002639768,-420.849798,0.00015794,2]
[401163053,1768002639871,-35828.49285846,0.00015794,2]
[401163054,1768002639880,-151.0,0.00015971,2]
[401163055,1768002639891,-151.0,0.00015971,2]
[401163056,1768002639901,-151.0,0.00015973,2]
[401163057,1768002639911,-151.0,0.00015973,2]
[401163058,1768002639921,-482.82,0.00016041,2]
[401163059,1768002639934,-203.20327401,0.00016138,2]
[401163060,1768002639943,-7821.58663844,0.00016138,2]
[401163061,1768002639953,-482.82,0.000162,2]
[401163062,1768002639963,-152.0,0.00016202,3]
[401163063,1768002640265,-1502.2,0.00016203,2]
[401163064,1768002640301,-161.93162007,0.00016237,5]
[401163065,1768002640312,-1647.215,0.00016237,2]
[401163066,1768002640322,-180.8080678,0.00016237,2]
[401163067,1768002640331,-1000.0,0.00016238,2]
[401163068,1768002640341,-500.0,0.00016273,2]
[401163069,1768002640351,-556.4,0.000163,2]
[401163070,1768002640360,-1225.2,0.000163,2]
[401163071,1768002640371,-556.4,0.000163,2]
[401163072,1768002640380,-661.58,0.000163,2]
[401163073,1768002640390,-661.58,0.000163,2]
[401163074,1768002640399,-555.93,0.000163,2]
[401163075,1768002640411,-482.82,0.000163,2]
[401163076,1768002640420,-482.82,0.000163,2]
[401163077,1768002640430,-661.58,0.000163,2]
[401163078,1768002640439,-7821.5866384,0.00016334,2]
[401163079,1768002640449,-2937.51022196,0.00016351,2]
[401163080,1768002640459,-152.0,0.00016434,4]
[401163081,1768002640468,-500.0,0.00016438,2]
[401163082,1768002640478,-500.0,0.00016438,2]
[401163083,1768002640488,-500.0,0.00016438,2]
[401163084,1768002640497,-500.0,0.00016438,2]
[401163085,1768002640507,-500.0,0.00016438,2]
[401163086,1768002640516,-500.0,0.00016438,2]
[401163087,1768002640526,-500.0,0.00016438,2]
[401163088,1768002640536,-500.0,0.00016438,2]
[401163089,1768002640547,-512.85267365,0.00016438,2]
[401163090,1768002640556,-500.0,0.00016438,2]
[401163091,1768002640566,-600.0,0.00016438,2]
[401163092,1768002640576,-10286.93,0.00016438,2]
[401163093,1768002640585,-1631.59422023,0.00016514,2]
[401163094,1768002640595,-7821.5866384,0.0001653,2]
[401163095,1768002640605,-500.0,0.00016562,2]
[401163096,1768002640615,-150.0,0.00016562,2]
[401163097,1768002640624,-150.0,0.00016562,2]
[401163098,1768002640634,-439.0,0.00016562,2]
[401163099,1768002640643,-161.78,0.00016595,2]
[401163100,1768002640653,-455.32396504,0.00016612,2]
[401163101,1768002640662,-500.0,0.00016617,2]
[401163102,1768002640672,-150.0,0.00016617,2]
[401163103,1768002640681,-286.78981793,0.00016617,2]
[401163104,1768002640691,-439.0,0.00016617,2]
[401163105,1768002640700,-540.9028506,0.00016619,2]
[401163106,1768002640710,-1871.53,0.00016633,2]
[401163107,1768002640719,-152.0,0.00016665,5]
[401163108,1768002640728,-500.0,0.00016672,2]
[401163109,1768002640738,-150.0,0.00016672,2]
[401163110,1768002640747,-439.0,0.00016672,2]
[401163111,1768002640757,-1905.25844675,0.00016696,2]
[401163112,1768002640766,-159.9,0.00016712,2]
[401163113,1768002640775,-7821.5866384,0.00016725,2]
[401163114,1768002640784,-364.92481471,0.00016726,2]
[401163115,1768002640794,-150.0,0.00016726,2]
[401163116,1768002640803,-439.0,0.00016726,2]
[401163117,1768002640812,-150.0,0.00016781,2]
[401163118,1768002640822,-439.0,0.00016781,2]
[401163119,1768002640831,-7138.16,0.00016796,2]
[401163120,1768002640841,-1000.0,0.00016821,2]
[401163121,1768002640850,-250.0,0.00016836,2]
[401163122,1768002640860,-439.0,0.00016836,2]
[401163123,1768002640869,-193.0,0.00016869,2]
[401163124,1768002640878,-250.0,0.00016869,2]
[401163125,1768002640887,-439.0,0.00016891,2]
[401163126,1768002640896,-152.0,0.00016897,6]
[401163127,1768002640906,-7821.5866384,0.00016921,2]
[401163128,1768002640915,-439.0,0.00016946,2]
[401163129,1768002640924,-180.45,0.00016978,2]
[401163130,1768002640937,-600.0,0.00016986,2]
[401163131,1768002640947,-50546.06,0.00016986,2]
[401163132,1768002640956,-500.0,0.00016986,2]
[401163133,1768002640965,-250.0,0.00017,2]
[401163134,1768002640975,-193.43465493,0.00017,2]
[401163135,1768002640984,-439.0,0.00017,2]
[401163136,1768002640994,-150.0,0.00017006,2]
[401163137,1768002641003,-295.37408827,0.00017018,2]
[401163138,1768002641013,-250.0,0.00017035,2]
[401163139,1768002641022,-439.0,0.00017055,2]
[401163140,1768002641031,-1000.0,0.00017063,2]
[401163141,1768002641041,-1000.0,0.00017071,2]
[401163142,1768002641050,-553.64373807,0.00017076,2]
[401163143,1768002641060,-250.0,0.00017076,2]
[401163144,1768002641070,-250.0,0.00017076,2]
[401163145,1768002641080,-1000.0,0.00017076,2]
[401163146,1768002641089,-250.0,0.00017076,2]
[401163147,1768002641099,-1000.0,0.00017076,2]
[401163148,1768002641108,-250.0,0.00017076,2]
[401163149,1768002641118,-250.0,0.00017076,2]
[401163150,1768002641127,-1000.0,0.00017076,2]
[401163151,1768002641137,-250.0,0.00017076,2]
[401163152,1768002641146,-1000.0,0.00017076,2]
[401163153,1768002641155,-250.0,0.00017076,2]
[401163154,1768002641164,-1000.0,0.00017076,2]
[401163155,1768002641174,-250.0,0.00017076,2]
[401163156,1768002641184,-1000.0,0.00017076,2]
[401163157,1768002641193,-250.0,0.00017076,2]
[401163158,1768002641202,-1000.0,0.00017076,2]
[401163159,1768002641212,-250.0,0.00017076,2]
[401163160,1768002641221,-1000.0,0.00017076,2]
[401163161,1768002641230,-250.0,0.00017076,2]
[401163162,1768002641239,-1000.0,0.00017076,2]
[401163163,1768002641249,-250.0,0.00017076,2]
[401163164,1768002641259,-500.0,0.00017076,2]
[401163165,1768002641268,-1000.0,0.00017076,2]
[401163166,1768002641277,-500.0,0.00017076,2]
[401163167,1768002641286,-500.0,0.00017076,2]
[401163168,1768002641296,-1000.0,0.00017076,2]
[401163169,1768002641306,-500.0,0.00017076,2]
[401163170,1768002641316,-500.0,0.00017076,2]
[401163171,1768002641325,-1000.0,0.00017076,2]
[401163172,1768002641335,-500.0,0.00017076,2]
[401163173,1768002641344,-500.0,0.00017076,2]
[401163174,1768002641353,-500.0,0.00017076,2]
[401163175,1768002641363,-500.0,0.00017076,2]
[401163176,1768002641373,-620.0,0.00017076,2]
[401163177,1768002641383,-500.0,0.00017076,2]
[401163178,1768002641393,-500.0,0.00017076,2]
[401163179,1768002641403,-322.6107,0.00017076,2]
[401163180,1768002641413,-500.0,0.00017076,2]
[401163181,1768002641422,-500.0,0.00017076,2]
[401163182,1768002641433,-500.0,0.00017076,2]
[401163183,1768002641442,-500.0,0.00017076,2]
[401163184,1768002641453,-500.0,0.00017076,2]
[401163185,1768002641463,-500.0,0.00017076,2]
[401163186,1768002641472,-500.0,0.00017076,2]
[401163187,1768002641481,-500.0,0.00017076,2]
[401163188,1768002641491,-500.0,0.00017076,2]
[401163189,1768002641501,-500.0,0.00017076,2]
[401163190,1768002641510,-571.49862836,0.00017076,2]
[401163191,1768002641519,-2000.0,0.00017076,2]
[401163192,1768002641529,-2000.0,0.00017076,2]